bitfinex/quotes_BTCUSD_20250525
["timestamp","ask_amount","ask_price","bid_price","bid_amount"]
[1748151358191,0.13714556,107870.0,107860.0,0.48624]
[1748151358427,0.61276583,107870.0,107860.0,0.63412]
[1748151358651,0.61276583,107870.0,107860.0,0.33288]
[1748151358858,0.61276583,107870.0,107860.0,0.63412]
[1748151359688,0.62383295,107870.0,107860.0,0.63412]
[1748151360906,0.63362078,107870.0,107860.0,0.63412]
[1748151361509,0.72314229,107870.0,107860.0,0.63412]
[1748151361960,0.63202078,107870.0,107860.0,0.4862]
[1748151362166,0.63202078,107870.0,107840.0,0.28347844]
[1748151362167,0.06214085,107860.0,107840.0,0.34]
[1748151362394,0.08954556,107850.0,107840.0,0.80107942]
[1748151362610,0.08954556,107850.0,107840.0,0.95435942]
[1748151363022,0.08954556,107850.0,107840.0,1.10235942]
[1748151363440,0.08954556,107850.0,107840.0,2.21691584]
[1748151363720,0.09154556,107850.0,107840.0,2.20767484]
[1748151363921,0.09154556,107850.0,107840.0,2.01086384]
[1748151364990,0.09354556,107850.0,107840.0,2.01086384]
[1748151365195,0.09354556,107850.0,107840.0,2.02068332]
[1748151365641,0.09354556,107850.0,107840.0,1.95573532]
[1748151367011,0.14114556,107850.0,107840.0,1.95573532]
[1748151367503,0.14114556,107850.0,107840.0,2.28869532]
[1748151368621,0.14114556,107850.0,107840.0,1.8276159]
[1748151369097,0.14114556,107850.0,107840.0,1.5861869]
[1748151369317,0.14107151,107850.0,107840.0,1.5861869]
[1748151371264,0.14107151,107850.0,107840.0,1.2461869]
[1748151374903,0.14107151,107850.0,107840.0,1.23636742]
[1748151381585,0.14107151,107850.0,107840.0,1.21736742]
[1748151385892,0.14107151,107850.0,107840.0,1.02149379]
[1748151415149,0.17967151,107850.0,107840.0,0.756248]
[1748151415368,0.17967151,107850.0,107840.0,1.09527942]
[1748151415970,0.17567151,107850.0,107840.0,1.09527942]
[1748151416392,0.17867151,107850.0,107840.0,1.09527942]
[1748151416729,0.18167151,107850.0,107840.0,1.09527942]
[1748151417870,0.18167151,107850.0,107840.0,0.79403942]
[1748151418028,0.18167151,107850.0,107840.0,1.09527942]
[1748151419059,0.18167151,107850.0,107840.0,1.59765542]
[1748151419566,0.18167151,107850.0,107840.0,1.49544842]
[1748151419963,0.13407151,107850.0,107840.0,1.49544842]
[1748151420398,0.13407151,107850.0,107840.0,1.31589242]
[1748151420744,0.13407151,107850.0,107840.0,1.28680142]
[1748151426465,0.13407151,107850.0,107840.0,1.23055942]
[1748151430868,0.13407151,107850.0,107840.0,1.21809242]
[1748151441128,0.13407151,107850.0,107840.0,0.757013]
[1748151441367,0.13407151,107850.0,107840.0,1.21809242]
[1748151446525,0.14293123,107850.0,107840.0,1.21809242]
[1748151453658,0.14293123,107850.0,107840.0,0.757013]
[1748151454832,0.14283316,107850.0,107840.0,0.757013]
[1748151488051,0.14283316,107850.0,107840.0,0.6342]
[1748151490719,0.14283316,107850.0,107840.0,0.33296]
[1748151490973,0.14283316,107850.0,107840.0,0.63404]
[1748151501269,0.61850402,107850.0,107840.0,0.33296]
[1748151501645,1.21356093,107850.0,107840.0,0.33296]
[1748151501843,1.31591093,107850.0,107840.0,0.48604]
[1748151502055,1.28183231,107850.0,107840.0,0.48604]
[1748151502274,1.30961031,107850.0,107840.0,0.48604]
[1748151502483,1.39913182,107850.0,107840.0,0.48604]
[1748151502714,1.37321044,107850.0,107840.0,0.63404]
[1748151503153,1.37021044,107850.0,107840.0,0.63404]
[1748151503393,1.37321044,107850.0,107840.0,0.63404]
[1748151503603,1.37821044,107850.0,107840.0,0.63404]
[1748151504207,1.37221044,107850.0,107840.0,0.33296]
[1748151504396,1.36721044,107850.0,107840.0,0.63404]
[1748151504661,1.31028354,107850.0,107840.0,0.63404]
[1748151504854,1.32429844,107850.0,107840.0,0.63404]
[1748151505218,1.35675029,107850.0,107840.0,0.63404]
[1748151505610,1.35675029,107850.0,107840.0,0.33296]
[1748151505889,1.35675029,107850.0,107840.0,0.63404]
[1748151506501,1.42053579,107850.0,107840.0,0.63404]
[1748151507225,1.42053579,107850.0,107840.0,0.33296]
[1748151507432,1.42053579,107850.0,107840.0,0.63404]
[1748151508257,0.0859,107830.0,107820.0,0.33304]
[1748151508527,0.14238641,107830.0,107820.0,0.15308]
[1748151508737,0.60351642,107830.0,107820.0,0.15308]
[1748151509545,0.60956659,107830.0,107820.0,0.30112]
[1748151509768,0.63444062,107830.0,107820.0,0.30112]
[1748151511996,0.62342631,107830.0,107820.0,0.30112]
[1748151512201,0.1622963,107830.0,107820.0,0.30112]
[1748151512441,0.62342631,107830.0,107820.0,0.30112]
[1748151517629,0.62342631,107830.0,107820.0,0.6342]
[1748151518508,0.1622963,107830.0,107820.0,0.6342]
[1748151518729,0.62342631,107830.0,107820.0,0.6342]
[1748151524015,0.1622963,107830.0,107820.0,0.6342]
[1748151524230,0.63444062,107830.0,107820.0,0.6342]
[1748151532327,0.63811206,107830.0,107820.0,0.6342]
[1748151533151,1.09924207,107830.0,107820.0,0.6342]
[1748151535155,0.63811206,107830.0,107820.0,0.6342]
[1748151535593,0.63821206,107830.0,107820.0,0.15336]
[1748151536000,0.17708205,107830.0,107820.0,0.15336]
[1748151536187,0.63821206,107830.0,107820.0,0.15336]
[1748151536608,0.62352631,107830.0,107820.0,0.15336]
[1748151536809,0.62352631,107830.0,107820.0,0.3014]
[1748151537640,0.63352631,107830.0,107820.0,0.63448]
[1748151538848,0.1723963,107830.0,107820.0,0.63448]
[1748151539072,0.63352631,107830.0,107820.0,0.63448]
[1748151539250,0.63352631,107830.0,107820.0,0.15336]
[1748151540547,0.63339622,107830.0,107820.0,0.3014]
[1748151543111,0.05294085,107810.0,107790.0,0.03546033]
[1748151543343,0.15604556,107800.0,107780.0,0.0114]
[1748151543560,0.15604556,107800.0,107790.0,0.30148]
[1748151544217,0.15604556,107800.0,107780.0,0.0114]
[1748151544428,0.15604556,107800.0,107790.0,0.30148]
[1748151545034,0.16490528,107800.0,107790.0,0.30148]
[1748151545252,0.05,107770.0,107760.0,0.0086]
[1748151545458,0.08954556,107770.0,107760.0,0.16204]
[1748151545670,0.08954556,107770.0,107760.0,0.30148]
[1748151546440,0.09054556,107770.0,107760.0,0.30148]
[1748151546647,0.09059569,107770.0,107760.0,0.30148]
[1748151546863,0.09059569,107770.0,107760.0,0.31288]
[1748151547066,0.09159569,107770.0,107760.0,0.31288]
[1748151547470,0.09159569,107770.0,107760.0,0.646]
[1748151547666,0.0994199,107770.0,107760.0,0.34452]
[1748151547842,0.1004199,107770.0,107760.0,0.646]
[1748151548127,0.1004199,107770.0,107760.0,0.6346]
[1748151550140,0.1004199,107770.0,107760.0,0.33312]
[1748151550354,0.09159569,107770.0,107760.0,0.63464]
[1748151550872,0.09159569,107770.0,107760.0,0.33312]
[1748151551101,0.09159569,107770.0,107760.0,0.63464]
[1748151551661,0.09159569,107770.0,107760.0,0.33312]
[1748151551829,0.09159569,107770.0,107760.0,0.64604]
[1748151553379,0.09159569,107770.0,107760.0,0.64324]
[1748151554133,0.09159569,107770.0,107760.0,0.64328]
[1748151554376,0.11029569,107770.0,107760.0,0.63468]
[1748151557213,0.09159569,107770.0,107760.0,0.63468]
[1748151557905,0.12979569,107770.0,107760.0,0.63468]
[1748151561891,0.12965359,107770.0,107760.0,0.63468]
[1748151570323,0.13847068,107770.0,107760.0,0.63468]
[1748151571159,0.13847068,107770.0,107760.0,0.63472]
[1748151573917,0.13847068,107770.0,107760.0,0.33312]
[1748151574084,0.13847068,107770.0,107760.0,0.6348]
[1748151575537,0.10027068,107770.0,107760.0,4.763184]
[1748151576852,0.10027068,107770.0,107760.0,5.103184]
[1748151577838,0.09145359,107770.0,107760.0,5.103184]
[1748151580653,0.0476,107780.0,107770.0,0.0125]
[1748151580831,0.0476,107780.0,107770.0,4.13070333]
[1748151581109,0.01110761,107790.0,107780.0,0.0125]
[1748151581281,0.10065317,107790.0,107780.0,4.276504]
[1748151581945,0.08959578,107790.0,107780.0,4.276504]
[1748151582872,0.09259578,107790.0,107780.0,4.276504]
[1748151583064,0.09259578,107790.0,107780.0,3.887921]
[1748151583975,0.09559578,107790.0,107780.0,3.887921]
[1748151584188,0.09559578,107790.0,107780.0,4.376001]
[1748151586867,0.09559578,107790.0,107780.0,4.050592]
[1748151587070,0.09559578,107790.0,107780.0,4.198672]
[1748151589426,0.09559578,107790.0,107780.0,4.2369854]
[1748151590601,0.09559578,107790.0,107780.0,4.0889054]
[1748151590808,0.09559578,107790.0,107780.0,4.3905054]
[1748151592646,0.09559578,107790.0,107780.0,4.0889054]
[1748151592854,0.09559578,107790.0,107780.0,4.3905054]
[1748151594080,0.13199578,107790.0,107780.0,4.3905054]
[1748151600249,0.13199578,107790.0,107780.0,4.2424254]
[1748151600475,0.13199578,107790.0,107780.0,4.3905054]
[1748151602405,0.13199578,107790.0,107780.0,4.7236254]
[1748151602607,0.17959578,107790.0,107780.0,4.7236254]
[1748151605750,0.17959578,107790.0,107780.0,0.67312]
[1748151605946,0.17959578,107790.0,107780.0,0.63472]
[1748151606576,0.19948207,107790.0,107780.0,0.63472]
[1748151608598,0.15188207,107790.0,107780.0,0.63472]
[1748151610265,0.64468426,107790.0,107780.0,0.33312]
[1748151610475,1.15798882,107790.0,107780.0,0.15352]
[1748151610694,1.16798882,107790.0,107780.0,0.15352]
[1748151610898,1.16798882,107790.0,107730.0,0.34]
[1748151610899,0.05,107730.0,107690.0,0.0520819]
[1748151611144,0.05,107730.0,107710.0,4.012192]
[1748151611373,0.05,107730.0,107720.0,3.955234]
[1748151611620,0.05,107730.0,107720.0,3.615234]
[1748151611820,0.05,107730.0,107720.0,2.382625]
[1748151612027,0.05,107730.0,107720.0,2.870705]
[1748151612249,0.05,107730.0,107720.0,2.87120776]
[1748151612591,0.05,107730.0,107720.0,2.88515882]
[1748151612794,0.051,107730.0,107720.0,2.73807882]
[1748151612993,0.052,107730.0,107720.0,3.03971882]
[1748151615031,0.052,107730.0,107720.0,2.73807882]
[1748151615249,0.14154556,107730.0,107720.0,2.72412776]
[1748151615454,0.13034556,107730.0,107720.0,0.61294976]
[1748151616267,0.13034556,107730.0,107720.0,0.56893676]
[1748151616677,0.12934556,107730.0,107720.0,0.56893676]
[1748151617093,0.13034556,107730.0,107720.0,0.56893676]
[1748151617445,0.12934556,107730.0,107720.0,0.90113676]
[1748151617659,0.13034556,107730.0,107720.0,1.24113676]
[1748151618361,0.13034556,107730.0,107720.0,1.24984696]
[1748151619598,0.13034556,107730.0,107720.0,1.24121676]
[1748151621064,0.13034556,107730.0,107720.0,0.93949676]
[1748151621275,0.13034556,107730.0,107720.0,1.24121676]
[1748151622259,0.13034556,107730.0,107720.0,1.01329701]
[1748151622491,0.13034556,107730.0,107720.0,1.554922]
[1748151623160,0.13034556,107730.0,107720.0,1.15943]
[1748151626286,0.13034556,107730.0,107720.0,1.01131]
[1748151626522,0.13034556,107730.0,107720.0,1.15943]
[1748151630505,0.13034556,107730.0,107720.0,1.16805474]
[1748151632235,0.13034556,107730.0,107720.0,1.15943]
[1748151632613,0.13034556,107730.0,107720.0,0.85771]
[1748151632817,0.13034556,107730.0,107720.0,1.15943]
[1748151640906,0.1391817,107730.0,107720.0,1.15943]
[1748151641611,0.1391817,107730.0,107720.0,1.16079]
[1748151659068,0.0408,107730.0,107720.0,1.16079]
[1748151669798,0.002,107730.0,107720.0,1.16079]
[1748151670011,0.002,107730.0,107720.0,1.18858]
[1748151670672,0.001,107730.0,107720.0,1.18858]
[1748151670892,0.0192,107740.0,107720.0,0.84858]
[1748151671118,0.0192,107740.0,107730.0,3.48549597]
[1748151671345,0.0192,107740.0,107730.0,3.483176]
[1748151672698,0.0202,107740.0,107730.0,3.483176]
[1748151673096,0.0212,107740.0,107730.0,3.483176]
[1748151673320,0.0391,107740.0,107730.0,3.483176]
[1748151673692,0.0381,107740.0,107730.0,3.483176]
[1748151673816,0.0391,107740.0,107730.0,3.484176]
[1748151674195,0.0391,107740.0,107730.0,3.851966]
[1748151682691,0.0391,107740.0,107730.0,4.154006]
[1748151696656,0.0391,107740.0,107730.0,4.487246]
[1748151701680,0.0391,107740.0,107730.0,4.227509]
[1748151701901,0.0391,107740.0,107730.0,4.079389]
[1748151702083,0.0391,107740.0,107730.0,4.227509]
[1748151703203,0.0391,107740.0,107730.0,4.228349]
[1748151704117,0.0391,107740.0,107730.0,3.859559]
[1748151708353,0.0891,107740.0,107730.0,3.859559]
[1748151708559,0.084,107760.0,107730.0,3.859559]
[1748151708775,0.084,107760.0,107740.0,3.22575872]
[1748151708992,0.084,107760.0,107750.0,3.371559]
[1748151710073,0.085,107760.0,107750.0,3.371559]
[1748151710477,0.087,107760.0,107750.0,3.371559]
[1748151711710,0.0394,107760.0,107750.0,3.371559]
[1748151712433,0.0394,107760.0,107750.0,3.143953]
[1748151713534,0.0394,107760.0,107750.0,2.150586]
[1748151719328,0.0394,107760.0,107750.0,2.305346]
[1748151720545,0.0394,107760.0,107750.0,2.645346]
[1748151724054,0.12894556,107760.0,107750.0,0.748806]
[1748151724275,0.12894556,107760.0,107750.0,0.750765]
[1748151726013,0.12894556,107760.0,107750.0,1.083965]
[1748151732262,0.12894556,107760.0,107750.0,1.084125]
[1748151735148,0.17654556,107760.0,107750.0,1.084125]
[1748151739010,0.17654556,107760.0,107750.0,0.781125]
[1748151739340,0.17654556,107760.0,107750.0,1.084125]
[1748151748875,0.18538523,107760.0,107750.0,1.084125]
[1748151766743,0.18538523,107760.0,107750.0,0.936005]
[1748151766954,0.18538523,107760.0,107750.0,1.084125]
[1748151771226,1.12798799,107760.0,107750.0,0.441125]
[1748151771400,1.07639032,107760.0,107750.0,0.63572]
[1748151771600,0.6882851,107760.0,107750.0,0.63572]
[1748151771809,0.22625298,107760.0,107750.0,0.63572]
[1748151772028,0.6882851,107760.0,107750.0,0.63572]
[1748151772218,1.16033794,107760.0,107750.0,0.63572]
[1748151772584,1.16333794,107760.0,107750.0,0.63672]
[1748151772809,1.16133794,107760.0,107750.0,0.63672]
[1748151773177,1.16433794,107760.0,107750.0,0.63772]
[1748151773361,0.70230582,107760.0,107750.0,0.63772]
[1748151774425,1.16433794,107760.0,107750.0,0.63772]
[1748151775115,1.16433794,107760.0,107750.0,0.3352]
[1748151775330,1.16433794,107760.0,107750.0,0.4896]
[1748151775537,1.16433794,107760.0,107750.0,0.63772]
[1748151776092,1.16133794,107760.0,107750.0,0.63672]
[1748151776294,1.15833794,107760.0,107750.0,0.63572]
[1748151776534,1.85903794,107760.0,107750.0,0.63572]
[1748151776694,1.86303794,107760.0,107750.0,0.63672]
[1748151778002,0.05,107720.0,107700.0,0.03240748]
[1748151778200,0.17684556,107720.0,107710.0,1.929255]
[1748151779174,0.17684556,107720.0,107710.0,2.077375]
[1748151779383,0.17884556,107720.0,107710.0,2.077375]
[1748151780208,0.17984556,107720.0,107710.0,2.077375]
[1748151780883,0.17884556,107720.0,107710.0,2.077375]
[1748151781098,0.12984556,107720.0,107710.0,2.078375]
[1748151785451,0.12984556,107720.0,107710.0,2.04653]
[1748151787658,0.12984556,107720.0,107710.0,2.37981]
[1748151790736,0.003,107720.0,107710.0,2.37981]
[1748151795654,0.003,107720.0,107710.0,2.00774655]
[1748151796851,0.003,107720.0,107710.0,2.15590655]
[1748151798807,0.053,107720.0,107710.0,2.15590655]
[1748151799031,0.003,107720.0,107710.0,2.15590655]
[1748151799228,0.053,107720.0,107710.0,2.15590655]
[1748151799599,0.053,107720.0,107710.0,2.15630655]
[1748151800210,0.053,107720.0,107710.0,2.15590655]
[1748151801644,0.003,107720.0,107710.0,2.15590655]
[1748151801848,0.053,107720.0,107710.0,2.15590655]
[1748151802176,0.053,107720.0,107710.0,2.15630655]
[1748151802654,0.053,107720.0,107710.0,2.15590655]
[1748151803136,0.053,107720.0,107710.0,2.15630655]
[1748151803784,0.003,107720.0,107710.0,2.15660655]
[1748151807533,0.003,107720.0,107710.0,2.24615211]
[1748151814523,0.003,107720.0,107710.0,2.26069296]
[1748151819011,0.00044625,107720.0,107710.0,2.26069296]
[1748151821668,0.0926269,107740.0,107710.0,2.26069296]
[1748151821883,0.1112269,107740.0,107720.0,2.77437013]
[1748151822086,0.1112269,107740.0,107730.0,2.92017]
[1748151822286,0.1112269,107740.0,107730.0,2.54046292]
[1748151822434,0.1112269,107740.0,107730.0,2.540463]
[1748151822859,0.1122269,107740.0,107730.0,2.540463]
[1748151823339,0.1132269,107740.0,107730.0,2.541463]
[1748151823586,0.1142269,107740.0,107730.0,2.689583]
[1748151824326,0.1642269,107740.0,107730.0,2.689583]
[1748151824507,0.1142269,107740.0,107730.0,2.689583]
[1748151824729,0.0393,107740.0,107730.0,2.689583]
[1748151825156,0.0403,107740.0,107730.0,2.689583]
[1748151825526,0.0903,107740.0,107730.0,2.843783]
[1748151825732,0.0403,107740.0,107730.0,2.843783]
[1748151827842,0.0393,107740.0,107730.0,2.843783]
[1748151828141,0.0383,107740.0,107730.0,2.843783]
[1748151828489,0.0393,107740.0,107730.0,2.845783]
[1748151836090,0.0893,107740.0,107730.0,2.845783]
[1748151836350,0.0393,107740.0,107730.0,2.845783]
[1748151836732,0.0893,107740.0,107730.0,2.543463]
[1748151836950,0.0893,107740.0,107730.0,2.845783]
[1748151837318,0.0393,107740.0,107730.0,2.845783]
[1748151837521,0.0893,107740.0,107730.0,2.845783]
[1748151838168,0.0393,107740.0,107730.0,2.845783]
[1748151838426,0.0893,107740.0,107730.0,2.845783]
[1748151838812,0.0393,107740.0,107730.0,2.845783]
[1748151839729,0.0893,107740.0,107730.0,2.845783]
[1748151839938,0.0393,107740.0,107730.0,2.845783]
[1748151840572,0.0893,107740.0,107730.0,2.845783]
[1748151840800,0.0393,107740.0,107730.0,2.845783]
[1748151840965,0.0893,107740.0,107730.0,2.845783]
[1748151841941,0.0893,107740.0,107730.0,2.650338]
[1748151842970,0.0393,107740.0,107730.0,2.650338]
[1748151851955,0.0893,107740.0,107730.0,2.348018]
[1748151852182,0.0893,107740.0,107730.0,2.649938]
[1748151853520,0.0393,107740.0,107730.0,2.649938]
[1748151853733,0.0893,107740.0,107730.0,2.649938]
[1748151855228,0.0393,107740.0,107730.0,2.649938]
[1748151855434,0.0893,107740.0,107730.0,2.649938]
[1748151855628,0.0893,107740.0,107730.0,2.989938]
[1748151855829,0.0893,107740.0,107730.0,2.688018]
[1748151856063,0.0893,107740.0,107730.0,2.989938]
[1748151856664,0.0393,107740.0,107730.0,2.989938]
[1748151856976,0.0893,107740.0,107730.0,2.989938]
[1748151861000,0.0893,107740.0,107730.0,3.323178]
[1748151861493,0.0393,107740.0,107730.0,3.34122905]
[1748151861910,0.0393,107740.0,107730.0,3.46194962]
[1748151862536,0.0393,107740.0,107730.0,3.48973562]
[1748151863141,0.01989034,107740.0,107730.0,3.48973562]
[1748151863567,0.01889034,107740.0,107730.0,3.48873562]
[1748151863714,0.01789034,107740.0,107730.0,3.48873562]
[1748151863918,0.001,107740.0,107730.0,3.49073562]
[1748151864249,0.002,107740.0,107730.0,3.49073562]
[1748151864651,0.002,107740.0,107730.0,3.50893562]
[1748151864869,0.1215269,107780.0,107730.0,3.16893562]
[1748151865069,0.21107246,107780.0,107740.0,0.00231953]
[1748151865271,0.21107246,107780.0,107750.0,0.14812]
[1748151865522,0.21107246,107780.0,107760.0,2.50113754]
[1748151865701,0.21107246,107780.0,107770.0,1.558122]
[1748151865910,0.21990991,107780.0,107770.0,1.558122]
[1748151866115,0.22090991,107780.0,107770.0,1.558122]
[1748151866335,0.25931254,107780.0,107770.0,1.558122]
[1748151866528,0.25831254,107780.0,107770.0,1.558122]
[1748151866936,0.26331254,107780.0,107770.0,1.326435]
[1748151867113,0.26431254,107780.0,107770.0,1.326435]
[1748151867515,0.26431254,107780.0,107770.0,1.35116917]
[1748151867716,0.26831254,107780.0,107770.0,1.35116917]
[1748151869094,0.19438564,107780.0,107770.0,1.35116917]
[1748151870658,0.19438564,107780.0,107770.0,0.94903357]
[1748151871063,0.19438564,107780.0,107770.0,2.11673617]
[1748151871871,0.19438564,107780.0,107770.0,2.26485617]
[1748151872686,0.19438564,107780.0,107770.0,2.21310217]
[1748151873425,0.10484008,107780.0,107770.0,2.23115322]
[1748151873742,0.10484008,107780.0,107770.0,2.69277099]
[1748151874150,0.09984008,107780.0,107770.0,2.69177099]
[1748151874352,0.09484008,107780.0,107770.0,2.69177099]
[1748151874559,0.09984008,107780.0,107770.0,2.69277099]
[1748151874967,0.09684008,107780.0,107770.0,2.69177099]
[1748151875167,0.09984008,107780.0,107770.0,2.69277099]
[1748151875428,0.09100263,107780.0,107770.0,2.69277099]
[1748151878128,0.09100263,107780.0,107770.0,2.67471994]
[1748151878346,0.09100263,107780.0,107770.0,3.02597099]
[1748151880325,0.09100263,107780.0,107770.0,2.68345229]
[1748151880532,0.09100263,107780.0,107770.0,2.73520682]
[1748151881653,0.09100263,107780.0,107770.0,2.90672602]
[1748151884729,0.09100263,107780.0,107770.0,2.88867497]
[1748151892679,0.09100263,107780.0,107770.0,2.66083969]
[1748151892857,0.09100263,107780.0,107770.0,2.66083997]
[1748151900656,0.09100263,107780.0,107770.0,3.12245774]
[1748151900868,0.09100263,107780.0,107770.0,2.66083997]
[1748151901075,0.09100263,107780.0,107770.0,3.12245774]
[1748151904042,0.04340263,107780.0,107770.0,2.66083997]
[1748151904597,0.04340263,107780.0,107770.0,3.12245774]
[1748151905840,0.04040263,107780.0,107770.0,3.12245774]
[1748151906045,0.04240263,107780.0,107770.0,3.12345774]
[1748151906482,0.04040263,107780.0,107770.0,3.12345774]
[1748151906795,0.04240263,107780.0,107770.0,3.12445774]
[1748151907608,0.04240263,107780.0,107770.0,3.46445774]
[1748151908104,0.04240263,107780.0,107770.0,3.47445774]
[1748151909125,0.04240263,107780.0,107770.0,3.12026254]
[1748151910291,0.04240263,107780.0,107770.0,3.26834254]
[1748151910565,0.04240263,107780.0,107770.0,3.28925112]
[1748151915478,0.04240263,107780.0,107770.0,3.42194254]
[1748151918604,0.09240263,107780.0,107770.0,3.42194254]
[1748151918816,0.04240263,107780.0,107770.0,3.42194254]
[1748151919169,0.04240263,107780.0,107770.0,3.27386254]
[1748151919390,0.09240263,107780.0,107770.0,3.42194254]
[1748151920733,0.04240263,107780.0,107770.0,3.42194254]
[1748151920878,0.09240263,107780.0,107770.0,3.42194254]
[1748151921095,0.07280263,107780.0,107770.0,3.42194254]
[1748151922059,0.07080263,107780.0,107770.0,3.42094254]
[1748151922443,0.07180263,107780.0,107770.0,3.42094254]
[1748151922857,0.02180263,107780.0,107770.0,3.42094254]
[1748151923054,0.01980263,107780.0,107770.0,3.41994254]
[1748151923257,0.02080263,107780.0,107770.0,3.41994254]
[1748151923615,0.07080263,107780.0,107770.0,3.41994254]
[1748151924017,0.02080263,107780.0,107770.0,3.41994254]
[1748151924467,0.00250263,107780.0,107770.0,3.41994254]
[1748151925768,0.02250263,107780.0,107770.0,3.41994254]
[1748151927302,0.02250263,107780.0,107770.0,3.27186254]
[1748151927529,0.02250263,107780.0,107770.0,3.41994254]
[1748151932172,0.00250263,107780.0,107770.0,3.52402895]
[1748151936099,0.00250263,107780.0,107770.0,3.54358833]
[1748151936528,0.02280263,107780.0,107770.0,3.54358833]
[1748151938899,0.02280263,107780.0,107770.0,3.52402895]
[1748151940662,0.07280263,107780.0,107770.0,3.52402895]
[1748151941401,0.02280263,107780.0,107770.0,3.52402895]
[1748151941610,0.07280263,107780.0,107770.0,3.52402895]
[1748151941818,0.02280263,107780.0,107770.0,3.52402895]
[1748151944824,0.02280263,107780.0,107770.0,3.54474166]
[1748151945623,0.04410263,107780.0,107770.0,3.54474166]
[1748151945860,0.02280263,107780.0,107770.0,3.54474166]
[1748151947047,0.04410263,107780.0,107770.0,3.54474166]
[1748151947466,0.09410263,107780.0,107770.0,3.54474166]
[1748151949686,0.04410263,107780.0,107770.0,3.54474166]
[1748151950311,0.09410263,107780.0,107770.0,3.54474166]
[1748151951633,0.04410263,107780.0,107770.0,3.54474166]
[1748151952337,0.09410263,107780.0,107770.0,3.54474166]
[1748151952463,0.04410263,107780.0,107770.0,3.54474166]
[1748151952677,0.09410263,107780.0,107770.0,3.54474166]
[1748151953880,0.04410263,107780.0,107770.0,3.54474166]
[1748151954164,0.09410263,107780.0,107770.0,3.54474166]
[1748151955821,0.09410263,107780.0,107770.0,3.24306166]
[1748151955999,0.09410263,107780.0,107770.0,3.54466166]
[1748151958659,0.02280263,107780.0,107770.0,3.54466166]
[1748151958851,0.07280263,107780.0,107770.0,3.54466166]
[1748151960573,0.09340263,107780.0,107770.0,3.54466166]
[1748151961270,0.07280263,107780.0,107770.0,3.24306166]
[1748151961584,0.09340263,107780.0,107770.0,3.54466166]
[1748151967396,0.09340263,107780.0,107770.0,3.13897525]
[1748151967611,0.09340263,107780.0,107770.0,3.44057525]
[1748151975773,0.04340263,107780.0,107770.0,3.44057525]
[1748151977215,0.0476,107810.0,107800.0,0.92323554]
[1748151977415,0.13714556,107810.0,107800.0,2.73670254]
[1748151978648,0.14014556,107810.0,107800.0,2.73770254]
[1748151978852,0.14414556,107810.0,107800.0,2.73770254]
[1748151979006,0.14714556,107810.0,107800.0,2.73870254]
[1748151979224,0.14314556,107810.0,107800.0,2.73770254]
[1748151979950,0.14714556,107810.0,107800.0,2.73870254]
[1748151980172,0.18544556,107810.0,107800.0,2.73870254]
[1748151980353,0.18544556,107810.0,107800.0,3.07178254]
[1748151981936,0.18544556,107810.0,107800.0,2.61016477]
[1748151983045,0.18544556,107810.0,107800.0,3.07178254]
[1748151984301,0.0959,107810.0,107800.0,3.07178254]
[1748151988650,0.0483,107810.0,107800.0,3.07178254]
[1748151991134,0.0443,107810.0,107800.0,3.07078254]
[1748151991313,0.0383,107810.0,107800.0,3.06978254]
[1748151991521,0.0403,107810.0,107800.0,3.07078254]
[1748151991719,0.0423,107810.0,107800.0,3.07078254]
[1748151994182,0.0923,107810.0,107800.0,3.41078254]
[1748151994311,0.0423,107810.0,107800.0,3.41078254]
[1748151997624,0.0423,107810.0,107800.0,2.487547]
[1748151997834,0.0423,107810.0,107800.0,3.41078254]
[1748152001305,0.0423,107810.0,107800.0,3.18198954]
[1748152003190,0.13184556,107810.0,107800.0,1.636819]
[1748152003300,0.13184556,107810.0,107800.0,2.24647677]
[1748152003504,0.13184556,107810.0,107800.0,1.94495677]
[1748152003727,0.1318958,107810.0,107800.0,1.90647677]
[1748152004145,0.1318958,107810.0,107800.0,1.38775636]
[1748152004395,0.1318958,107810.0,107800.0,1.86165177]
[1748152004775,0.1318958,107810.0,107800.0,1.71361177]
[1748152004982,0.1318958,107810.0,107800.0,1.86165177]
[1748152007645,0.1318958,107810.0,107800.0,2.19469177]
[1748152016693,0.1318958,107810.0,107800.0,2.19465177]
[1748152018060,0.1318958,107810.0,107800.0,1.94617777]
[1748152029987,0.1318958,107810.0,107800.0,1.75269577]
[1748152030207,0.1318958,107810.0,107800.0,1.291078]
[1748152030423,0.1318958,107810.0,107800.0,1.036644]
[1748152031500,0.1318958,107810.0,107800.0,0.735164]
[1748152031700,0.1318958,107810.0,107800.0,1.036644]
[1748152032282,0.1318958,107810.0,107800.0,0.735164]
[1748152032488,0.1318958,107810.0,107800.0,1.036644]
[1748152042687,0.1318958,107810.0,107800.0,0.735164]
[1748152042897,0.1318958,107810.0,107800.0,0.814588]
[1748152043099,0.1318958,107810.0,107800.0,0.791713]
[1748152043645,0.1318958,107810.0,107800.0,0.490273]
[1748152043849,0.1318958,107810.0,107800.0,0.791713]
[1748152044310,0.1318958,107810.0,107800.0,0.469778]
[1748152044526,0.1318958,107810.0,107800.0,0.736715]
[1748152044743,0.1793958,107810.0,107800.0,0.63448]
[1748152044973,0.1793958,107810.0,107800.0,0.444052]
[1748152045195,0.59351357,107810.0,107800.0,0.63448]
[1748152050679,0.59151357,107810.0,107800.0,0.63448]
[1748152051140,0.59251357,107810.0,107800.0,0.63548]
[1748152051327,0.59251357,107810.0,107800.0,0.63648]
[1748152051478,0.59651357,107810.0,107800.0,0.63648]
[1748152052768,0.59651357,107810.0,107800.0,0.33504]
[1748152052987,0.59651357,107810.0,107800.0,0.63652]
[1748152058793,0.59651357,107810.0,107800.0,0.48848]
[1748152058996,0.59651357,107810.0,107800.0,0.63652]
[1748152060814,0.63320301,107810.0,107800.0,0.63652]
[1748152062927,0.59651357,107810.0,107800.0,0.63652]
[1748152063548,0.59651357,107810.0,107800.0,0.33504]
[1748152063750,0.59651357,107810.0,107800.0,0.63652]
[1748152066879,0.59651357,107810.0,107800.0,0.33504]
[1748152067096,0.59651357,107810.0,107800.0,0.63652]
[1748152074601,0.60753429,107810.0,107800.0,0.63652]
[1748152078569,0.62207514,107810.0,107800.0,0.33504]
[1748152078777,0.62207514,107810.0,107800.0,0.48844]
[1748152078936,0.62207514,107810.0,107800.0,0.63652]
[1748152079606,0.61807514,107810.0,107800.0,0.63552]